[Event "Early-Titled-Tuesday-Blitz-February-06-2024"]
[Site "Chess.com"]
[Date "2024.02.06"]
[Round "7"]
[White "FMVolodymyrSakun"]
[Black "campochess"]
[Result "1/2-1/2"]
[WhiteElo "2528"]
[BlackElo "2075"]
[TimeControl "180+1"]
[EndTime "9:19:11 PST"]
[Termination "Game drawn by repetition"]

1. d4 {[%clk 0:03:00.9]} 1... Nf6 {[%clk 0:02:59]} 2. c4 {[%clk 0:03:01.2]} 2...
e6 {[%clk 0:02:58.2]} 3. Nf3 {[%clk 0:03:01.4]} 3... b6 {[%clk 0:02:56.6]} 4. g3
{[%clk 0:03:00.6]} 4... Bb7 {[%clk 0:02:56.5]} 5. Bg2 {[%clk 0:03:01]} 5... Bb4+
{[%clk 0:02:55.4]} 6. Bd2 {[%clk 0:03:00.8]} 6... a5 {[%clk 0:02:55.4]} 7. O-O
{[%clk 0:03:00.5]} 7... O-O {[%clk 0:02:55.2]} 8. Nc3 {[%clk 0:03:00.8]} 8...
Re8 {[%clk 0:02:53.3]} 9. Re1 {[%clk 0:02:58]} 9... Bf8 {[%clk 0:02:53]} 10. e4
{[%clk 0:02:57.4]} 10... d6 {[%clk 0:02:53]} 11. Qe2 {[%clk 0:02:44.9]} 11...
Nfd7 {[%clk 0:02:52.6]} 12. Rad1 {[%clk 0:02:40.7]} 12... Nc6 {[%clk 0:02:38.9]}
13. a3 {[%clk 0:02:39.7]} 13... Ne7 {[%clk 0:02:38.6]} 14. h4 {[%clk 0:02:39]}
14... h6 {[%clk 0:02:37]} 15. Qd3 {[%clk 0:02:35.9]} 15... g6 {[%clk 0:02:35.6]}
16. h5 {[%clk 0:02:34.4]} 16... Bg7 {[%clk 0:02:31.7]} 17. hxg6 {[%clk 0:02:34]}
17... Nxg6 {[%clk 0:02:30]} 18. Be3 {[%clk 0:02:33.5]} 18... Nf6 {[%clk
0:02:28.6]} 19. Nh2 {[%clk 0:02:27.6]} 19... e5 {[%clk 0:02:25.2]} 20. d5 {[%clk
0:02:27]} 20... Bc8 {[%clk 0:02:20.6]} 21. Qd2 {[%clk 0:02:26.4]} 21... Kh7
{[%clk 0:02:19.1]} 22. Bf3 {[%clk 0:02:23.5]} 22... Ng8 {[%clk 0:02:18.6]} 23.
Kg2 {[%clk 0:02:19.9]} 23... f5 {[%clk 0:02:15.7]} 24. exf5 {[%clk 0:02:19.7]}
24... Bxf5 {[%clk 0:02:15]} 25. Be4 {[%clk 0:02:19.9]} 25... Qf6 {[%clk
0:02:11.2]} 26. Rh1 {[%clk 0:02:17.9]} 26... Rf8 {[%clk 0:02:07.1]} 27. Qd3
{[%clk 0:02:16.7]} 27... N8e7 {[%clk 0:02:01.3]} 28. Rdf1 {[%clk 0:01:53.5]}
28... Kg8 {[%clk 0:02:00.8]} 29. Bxf5 {[%clk 0:01:50.4]} 29... Nxf5 {[%clk
0:01:59.3]} 30. Ng4 {[%clk 0:01:50.6]} 30... Nxe3+ {[%clk 0:01:54.5]} 31. Qxe3
{[%clk 0:01:49.3]} 31... Qg5 {[%clk 0:01:54.5]} 32. Nxh6+ {[%clk 0:01:45.8]}
32... Bxh6 {[%clk 0:01:54.4]} 33. Rxh6 {[%clk 0:01:45.9]} 33... Nf4+ {[%clk
0:01:47.3]} 34. Kg1 {[%clk 0:01:27.3]} 34... Qxh6 {[%clk 0:01:47.2]} 35. gxf4
{[%clk 0:01:27.1]} 35... Rxf4 {[%clk 0:01:46.5]} 36. Ne4 {[%clk 0:01:26.6]}
36... Kf7 {[%clk 0:01:39.8]} 37. Ng3 {[%clk 0:01:24.7]} 37... Rg8 {[%clk
0:01:39.1]} 38. Rc1 {[%clk 0:01:17.7]} 38... Qh3 {[%clk 0:01:36.6]} 39. Rc3
{[%clk 0:01:16]} 39... Rh4 {[%clk 0:01:28.7]} 40. Qf3+ {[%clk 0:01:13.5]} 40...
Ke7 {[%clk 0:01:22.2]} 41. Qg2 {[%clk 0:01:02.7]} 41... Qg4 {[%clk 0:01:20.7]}
42. Rf3 {[%clk 0:00:39.5]} 42... Rhh8 {[%clk 0:01:15.3]} 43. Nf5+ {[%clk
0:00:36.2]} 43... Kd8 {[%clk 0:01:15.3]} 44. Ng3 {[%clk 0:00:21.3]} 44... Qxc4
{[%clk 0:01:12.7]} 45. Rc3 {[%clk 0:00:19.9]} 45... Qd4 {[%clk 0:01:04.4]} 46.
Qf3 {[%clk 0:00:16.9]} 46... Rf8 {[%clk 0:01:01.1]} 47. Qe2 {[%clk 0:00:17.2]}
47... Rf4 {[%clk 0:00:57.7]} 48. Rd3 {[%clk 0:00:15]} 48... Qc4 {[%clk
0:00:56.5]} 49. Kg2 {[%clk 0:00:13.3]} 49... Rfh4 {[%clk 0:00:55.7]} 50. Qd2
{[%clk 0:00:09.8]} 50... Rh2+ {[%clk 0:00:55.3]} 51. Kg1 {[%clk 0:00:10.2]}
51... Qh4 {[%clk 0:00:53.3]} 52. Kf1 {[%clk 0:00:09]} 52... Qh3+ {[%clk
0:00:53.2]} 53. Ke1 {[%clk 0:00:09.1]} 53... Rg2 {[%clk 0:00:52.4]} 54. Qg5+
{[%clk 0:00:08.9]} 54... Kc8 {[%clk 0:00:50.2]} 55. Rc3 {[%clk 0:00:08]} 55...
Rg1+ {[%clk 0:00:47.7]} 56. Ke2 {[%clk 0:00:08.4]} 56... Rf8 {[%clk 0:00:42.3]}
57. Qe7 {[%clk 0:00:07.4]} 57... Rxf2+ {[%clk 0:00:39.9]} 58. Kxf2 {[%clk
0:00:06.9]} 58... Qg2+ {[%clk 0:00:39.8]} 59. Ke3 {[%clk 0:00:05.9]} 59... Qxg3+
{[%clk 0:00:39.9]} 60. Kd2 {[%clk 0:00:04.8]} 60... Qf2+ {[%clk 0:00:37.5]} 61.
Kd3 {[%clk 0:00:03.8]} 61... Rg3+ {[%clk 0:00:36.4]} 62. Kc4 {[%clk 0:00:03.3]}
62... Qc5+ {[%clk 0:00:35.3]} 63. Kb3 {[%clk 0:00:03.7]} 63... Rxc3+ {[%clk
0:00:34.4]} 64. bxc3 {[%clk 0:00:03.7]} 64... Qxd5+ {[%clk 0:00:34.6]} 65. Kb2
{[%clk 0:00:04.2]} 65... Kb7 {[%clk 0:00:33.3]} 66. Qe8 {[%clk 0:00:04.1]} 66...
b5 {[%clk 0:00:32.8]} 67. a4 {[%clk 0:00:03.9]} 67... b4 {[%clk 0:00:31.9]} 68.
cxb4 {[%clk 0:00:03.2]} 68... axb4 {[%clk 0:00:32]} 69. Qd7 {[%clk 0:00:02.6]}
69... Qd2+ {[%clk 0:00:31.6]} 70. Kb3 {[%clk 0:00:02.7]} 70... Qc3+ {[%clk
0:00:31.8]} 71. Ka2 {[%clk 0:00:03]} 71... e4 {[%clk 0:00:29.4]} 72. Qb5+ {[%clk
0:00:02.5]} 72... Ka7 {[%clk 0:00:29]} 73. Qa5+ {[%clk 0:00:02.6]} 73... Kb8
{[%clk 0:00:28.7]} 74. Qb5+ {[%clk 0:00:02.9]} 74... Kc8 {[%clk 0:00:28.5]} 75.
Qe8+ {[%clk 0:00:03]} 75... Kb7 {[%clk 0:00:28.3]} 76. Qb5+ {[%clk 0:00:03.7]}
76... Ka8 {[%clk 0:00:28.6]} 77. Qa5+ {[%clk 0:00:03.2]} 77... Kb8 {[%clk
0:00:28.6]} 78. Qb5+ {[%clk 0:00:03.7]} 78... Kc8 {[%clk 0:00:28.4]} 79. Qe8+
{[%clk 0:00:04]} 79... Kb7 {[%clk 0:00:28.5]} 80. Qb5+ {[%clk 0:00:04.3]}
1/2-1/2

[Event "Early-Titled-Tuesday-Blitz-February-06-2024"]
[Site "Chess.com"]
[Date "2024.02.06"]
[Round "7"]
[White "arnash_bauyrzhan"]
[Black "picturesquecheck"]
[Result "0-1"]
[WhiteElo "2263"]
[BlackElo "2391"]
[TimeControl "180+1"]
[EndTime "9:19:14 PST"]
[Termination "picturesquecheck won by resignation"]

1. e4 {[%clk 0:03:00.9]} 1... d6 {[%clk 0:02:56.3]} 2. d4 {[%clk 0:03:00.4]}
2... g6 {[%clk 0:02:55.2]} 3. Nf3 {[%clk 0:03:00]} 3... Bg7 {[%clk 0:02:55.3]}
4. Bd3 {[%clk 0:02:59.3]} 4... Nd7 {[%clk 0:02:52.5]} 5. O-O {[%clk 0:02:59.2]}
5... c5 {[%clk 0:02:52.8]} 6. c3 {[%clk 0:02:58.7]} 6... a6 {[%clk 0:02:53.3]}
7. Be3 {[%clk 0:02:57.3]} 7... e6 {[%clk 0:02:52.2]} 8. h3 {[%clk 0:02:57]} 8...
Ne7 {[%clk 0:02:51.8]} 9. Qe2 {[%clk 0:02:56.6]} 9... O-O {[%clk 0:02:50]} 10.
a4 {[%clk 0:02:56.8]} 10... Qc7 {[%clk 0:02:50]} 11. Nbd2 {[%clk 0:02:55.9]}
11... b6 {[%clk 0:02:50]} 12. Rfd1 {[%clk 0:02:52.5]} 12... Bb7 {[%clk 0:02:49]}
13. Nf1 {[%clk 0:02:40.5]} 13... Nc6 {[%clk 0:02:47.8]} 14. d5 {[%clk
0:02:35.5]} 14... exd5 {[%clk 0:02:45.6]} 15. exd5 {[%clk 0:02:35.2]} 15... Nce5
{[%clk 0:02:45.8]} 16. Nxe5 {[%clk 0:01:46.6]} 16... Nxe5 {[%clk 0:02:46.7]} 17.
c4 {[%clk 0:01:46.6]} 17... Bc8 {[%clk 0:02:11.4]} 18. Ng3 {[%clk 0:01:35.9]}
18... Nxd3 {[%clk 0:02:08]} 19. Rxd3 {[%clk 0:01:34.8]} 19... Re8 {[%clk
0:02:08.1]} 20. Qc2 {[%clk 0:01:22.1]} 20... h5 {[%clk 0:02:05]} 21. Rb3 {[%clk
0:01:17.8]} 21... h4 {[%clk 0:02:01.7]} 22. Nf1 {[%clk 0:01:10.4]} 22... Bf5
{[%clk 0:02:01.6]} 23. Qd2 {[%clk 0:01:07]} 23... Rab8 {[%clk 0:01:48]} 24. Bg5
{[%clk 0:00:59]} 24... Re4 {[%clk 0:01:43.7]} 25. Rc1 {[%clk 0:00:46.8]} 25...
f6 {[%clk 0:01:36.4]} 26. Be3 {[%clk 0:00:42.1]} 26... Qd7 {[%clk 0:01:36.1]}
27. Qe2 {[%clk 0:00:29.4]} 27... a5 {[%clk 0:01:07]} 28. Qf3 {[%clk 0:00:23.5]}
28... Qxa4 {[%clk 0:01:02.7]} 29. Nd2 {[%clk 0:00:20.2]} 29... Re7 {[%clk
0:00:59.8]} 30. Ra3 {[%clk 0:00:15.2]} 30... Qd7 {[%clk 0:00:59.4]} 31. Bf4
{[%clk 0:00:14]} 31... g5 {[%clk 0:00:56.1]} 32. Bh2 {[%clk 0:00:13.3]} 32...
Bg6 {[%clk 0:00:53.9]} 33. Rb3 {[%clk 0:00:12.3]} 33... f5 {[%clk 0:00:45.9]}
34. Ra1 {[%clk 0:00:10.9]} 34... Qc7 {[%clk 0:00:44]} 35. Qd3 {[%clk 0:00:08]}
35... Be5 {[%clk 0:00:43.3]} 36. Bxe5 {[%clk 0:00:07.1]} 36... Rxe5 {[%clk
0:00:44.2]} 37. Nf3 {[%clk 0:00:06.3]} 37... Re7 {[%clk 0:00:31.1]} 38. Nxg5
{[%clk 0:00:06.3]} 38... Rbe8 {[%clk 0:00:31.1]} 39. Ne6 {[%clk 0:00:06.5]}
39... Qa7 {[%clk 0:00:20.9]} 40. Qf3 {[%clk 0:00:06.3]} 40... Rh7 {[%clk
0:00:16.7]} 41. Qf4 {[%clk 0:00:06.6]} 41... Qe7 {[%clk 0:00:09.2]} 42. Rf3
{[%clk 0:00:04.9]} 42... Qf6 {[%clk 0:00:09]} 43. Qxd6 {[%clk 0:00:04.4]} 43...
Qxb2 {[%clk 0:00:08.2]} 44. Re1 {[%clk 0:00:03.2]} 44... Qf6 {[%clk 0:00:08.3]}
45. Qf4 {[%clk 0:00:02.7]} 45... Rhe7 {[%clk 0:00:08]} 46. Qh6 {[%clk 0:00:02]}
46... Qf7 {[%clk 0:00:03]} 47. Rb1 {[%clk 0:00:01.7]} 47... Qh7 {[%clk
0:00:03.2]} 48. Qg5 {[%clk 0:00:01.5]} 48... Kh8 {[%clk 0:00:01.9]} 49. Rxb6
{[%clk 0:00:02.2]} 49... Bf7 {[%clk 0:00:02.3]} 50. d6 {[%clk 0:00:02.4]} 50...
Rxe6 {[%clk 0:00:02.2]} 51. Rxf5 {[%clk 0:00:02]} 51... Re1+ {[%clk 0:00:03.1]}
52. Kh2 {[%clk 0:00:02.3]} 52... Bg6 {[%clk 0:00:03.7]} 53. d7 {[%clk
0:00:02.2]} 53... Bxf5 {[%clk 0:00:02.5]} 54. dxe8=Q+ {[%clk 0:00:02.1]} 54...
Rxe8 {[%clk 0:00:03.4]} 55. Qf6+ {[%clk 0:00:02.3]} 55... Kg8 {[%clk 0:00:03.1]}
56. Rd6 {[%clk 0:00:02.4]} 56... Rf8 {[%clk 0:00:02.5]} 57. Qg5+ {[%clk
0:00:02.5]} 57... Kh8 {[%clk 0:00:02.3]} 58. Rh6 {[%clk 0:00:01.9]} 58... Rg8
{[%clk 0:00:01.9]} 59. Rxh7+ {[%clk 0:00:02.4]} 59... Kxh7 {[%clk 0:00:02.5]}
60. Qxh4+ {[%clk 0:00:03]} 60... Kg7 {[%clk 0:00:01.5]} 61. Qf6+ {[%clk
0:00:03.6]} 61... Kxf6 {[%clk 0:00:01.5]} 62. g4 {[%clk 0:00:03.4]} 62... Bd3
{[%clk 0:00:02.4]} 63. g5+ {[%clk 0:00:04.3]} 63... Kf5 {[%clk 0:00:02.4]} 64.
f3 {[%clk 0:00:04.7]} 64... a4 {[%clk 0:00:03.3]} 65. h4 {[%clk 0:00:05.1]}
65... a3 {[%clk 0:00:04.2]} 0-1

[Event "Early-Titled-Tuesday-Blitz-February-06-2024"]
[Site "Chess.com"]
[Date "2024.02.06"]
[Round "7"]
[White "Chesstiger64"]
[Black "Mourinho_Jose"]
[Result "1/2-1/2"]
[WhiteElo "2278"]
[BlackElo "2475"]
[TimeControl "180+1"]
[EndTime "9:19:16 PST"]
[Termination "Game drawn by agreement"]

1. d4 {[%clk 0:02:55.5]} 1... d5 {[%clk 0:03:00.2]} 2. Nf3 {[%clk 0:02:54.6]}
2... Nf6 {[%clk 0:03:00.6]} 3. e3 {[%clk 0:02:54.9]} 3... Bf5 {[%clk 0:02:59.8]}
4. c4 {[%clk 0:02:54.8]} 4... c6 {[%clk 0:02:58.6]} 5. Nc3 {[%clk 0:02:55.2]}
5... e6 {[%clk 0:02:59]} 6. Be2 {[%clk 0:02:55.3]} 6... Bd6 {[%clk 0:02:56.1]}
7. Nh4 {[%clk 0:02:55]} 7... Bg6 {[%clk 0:02:54.6]} 8. Qb3 {[%clk 0:02:53.6]}
8... Qb6 {[%clk 0:02:50.5]} 9. c5 {[%clk 0:02:52.8]} 9... Qxb3 {[%clk
0:02:50.5]} 10. axb3 {[%clk 0:02:53.4]} 10... Be7 {[%clk 0:02:49.9]} 11. b4
{[%clk 0:02:51.1]} 11... a6 {[%clk 0:02:49.4]} 12. b5 {[%clk 0:02:51.3]} 12...
cxb5 {[%clk 0:02:49.4]} 13. Nxb5 {[%clk 0:02:46.9]} 13... Kd7 {[%clk 0:02:46.5]}
14. Nc3 {[%clk 0:02:32.9]} 14... Nc6 {[%clk 0:02:46.3]} 15. Nxg6 {[%clk
0:02:31.7]} 15... hxg6 {[%clk 0:02:46.1]} 16. Na4 {[%clk 0:02:24.8]} 16... Rad8
{[%clk 0:02:36.4]} 17. Nb6+ {[%clk 0:02:23]} 17... Kc7 {[%clk 0:02:36.6]} 18.
Bd2 {[%clk 0:02:17.9]} 18... e5 {[%clk 0:02:33.6]} 19. Bc3 {[%clk 0:02:18]}
19... Ne4 {[%clk 0:02:30.9]} 20. O-O {[%clk 0:02:12.3]} 20... exd4 {[%clk
0:02:25.3]} 21. exd4 {[%clk 0:02:09.5]} 21... Rhe8 {[%clk 0:02:23.9]} 22. Bf3
{[%clk 0:02:09.4]} 22... Bf6 {[%clk 0:02:18.1]} 23. Rfd1 {[%clk 0:02:04.2]}
23... Re7 {[%clk 0:01:08.6]} 24. Kf1 {[%clk 0:02:02.1]} 24... g5 {[%clk
0:01:04.1]} 25. h3 {[%clk 0:02:01.5]} 25... g6 {[%clk 0:01:04.3]} 26. Rd3 {[%clk
0:01:57.4]} 26... Bg7 {[%clk 0:01:04]} 27. Bd1 {[%clk 0:01:31.9]} 27... f5
{[%clk 0:01:02.7]} 28. Bb3 {[%clk 0:01:31.9]} 28... Nf6 {[%clk 0:00:56.3]} 29.
Rg3 {[%clk 0:01:23.7]} 29... Bh6 {[%clk 0:00:50.2]} 30. Re1 {[%clk 0:01:17.8]}
30... Rxe1+ {[%clk 0:00:47.6]} 31. Kxe1 {[%clk 0:01:18.7]} 31... Re8+ {[%clk
0:00:40.5]} 32. Re3 {[%clk 0:01:18.5]} 32... Rxe3+ {[%clk 0:00:38.3]} 33. fxe3
{[%clk 0:01:19.4]} 33... Ne7 {[%clk 0:00:38.4]} 34. Ba4 {[%clk 0:01:10.2]} 34...
g4 {[%clk 0:00:34.7]} 35. Ba5 {[%clk 0:01:01.6]} 35... Kb8 {[%clk 0:00:34.8]}
36. Ke2 {[%clk 0:00:58]} 36... gxh3 {[%clk 0:00:31.3]} 37. gxh3 {[%clk
0:00:58.9]} 37... Nc6 {[%clk 0:00:30.8]} 38. Be1 {[%clk 0:00:46.4]} 38... f4
{[%clk 0:00:30.7]} 39. Bf2 {[%clk 0:00:42.2]} 39... Kc7 {[%clk 0:00:24.1]} 40.
Bb3 {[%clk 0:00:39.5]} 40... Ne7 {[%clk 0:00:24.1]} 41. Kf3 {[%clk 0:00:38.1]}
41... g5 {[%clk 0:00:21.4]} 42. exf4 {[%clk 0:00:36.8]} 42... gxf4 {[%clk
0:00:22.3]} 43. Bh4 {[%clk 0:00:36.3]} 43... Bg7 {[%clk 0:00:04.9]} 44. Bxf6
{[%clk 0:00:33.5]} 44... Bxf6 {[%clk 0:00:04.4]} 45. Nxd5+ {[%clk 0:00:19.8]}
45... Nxd5 {[%clk 0:00:04.4]} 46. Bxd5 {[%clk 0:00:19.7]} 46... Bxd4 {[%clk
0:00:05.1]} 47. b3 {[%clk 0:00:17.3]} 47... Bxc5 {[%clk 0:00:03.3]} 48. Kxf4
{[%clk 0:00:17.5]} 48... b5 {[%clk 0:00:03.8]} 49. h4 {[%clk 0:00:16.9]} 49...
a5 {[%clk 0:00:04.4]} 50. h5 {[%clk 0:00:17.3]} 50... Ba3 {[%clk 0:00:04.6]} 51.
h6 {[%clk 0:00:16.9]} 51... Bc1+ {[%clk 0:00:05.2]} 52. Ke4 {[%clk 0:00:15.8]}
52... Bxh6 {[%clk 0:00:06.1]} 53. Kd3 {[%clk 0:00:16.1]} 53... Kd6 {[%clk
0:00:06.6]} 54. Bf7 {[%clk 0:00:15]} 54... Kc5 {[%clk 0:00:07.1]} 55. Be8 {[%clk
0:00:15.1]} 55... Kb4 {[%clk 0:00:07]} 56. Kc2 {[%clk 0:00:14.8]} 56... Bg7
{[%clk 0:00:07.7]} 57. Bd7 {[%clk 0:00:13.5]} 57... Bf6 {[%clk 0:00:08]} 58. Be8
{[%clk 0:00:13.6]} 58... Kc5 {[%clk 0:00:08.3]} 59. Bd7 {[%clk 0:00:13.3]} 59...
Be5 {[%clk 0:00:08.3]} 60. Be8 {[%clk 0:00:13.5]} 60... Bd4 {[%clk 0:00:08.6]}
61. Bd7 {[%clk 0:00:13.5]} 61... Kb4 {[%clk 0:00:09.2]} 62. Be8 {[%clk
0:00:13.6]} 62... Bf6 {[%clk 0:00:09.7]} 63. Bd7 {[%clk 0:00:13.3]} 63... Be5
{[%clk 0:00:09.7]} 64. Be8 {[%clk 0:00:13.5]} 64... Ka3 {[%clk 0:00:10.6]} 65.
Bd7 {[%clk 0:00:13]} 65... b4 {[%clk 0:00:11.5]} 66. Ba4 {[%clk 0:00:11.8]}
66... Bd4 {[%clk 0:00:10.8]} 67. Kd3 {[%clk 0:00:12.3]} 67... Bc3 {[%clk
0:00:11.3]} 68. Kc4 {[%clk 0:00:12.7]} 68... Bf6 {[%clk 0:00:09.8]} 69. Kb5
{[%clk 0:00:13.3]} 69... Bd8 {[%clk 0:00:10.7]} 70. Kc6 {[%clk 0:00:13.7]} 70...
Kb2 {[%clk 0:00:11.6]} 71. Kd7 {[%clk 0:00:14.3]} 71... Bg5 {[%clk 0:00:11.9]}
72. Kc6 {[%clk 0:00:14.9]} 72... Kc3 {[%clk 0:00:12.8]} 73. Kb6 {[%clk
0:00:14.5]} 73... Bd8+ {[%clk 0:00:13.5]} 74. Kc6 {[%clk 0:00:14.8]} 74... Kd4
{[%clk 0:00:13.8]} 75. Kd7 {[%clk 0:00:14.7]} 75... Bf6 {[%clk 0:00:13.6]} 76.
Kc6 {[%clk 0:00:14.9]} 76... Bg7 {[%clk 0:00:13.5]} 77. Kd7 {[%clk 0:00:15.2]}
77... Kc5 {[%clk 0:00:13.6]} 78. Ke6 {[%clk 0:00:15.5]} 78... Bf8 {[%clk
0:00:13.9]} 79. Kf5 {[%clk 0:00:15.8]} 1/2-1/2

[Event "Early-Titled-Tuesday-Blitz-February-06-2024"]
[Site "Chess.com"]
[Date "2024.02.06"]
[Round "7"]
[White "BestStelker"]
[Black "toninhojit"]
[Result "0-1"]
[WhiteElo "2700"]
[BlackElo "2539"]
[TimeControl "180+1"]
[EndTime "9:19:19 PST"]
[Termination "toninhojit won on time"]

1. c4 {[%clk 0:03:00.9]} 1... c5 {[%clk 0:02:59.8]} 2. Nc3 {[%clk 0:03:00.3]}
2... Nc6 {[%clk 0:03:00.5]} 3. Nf3 {[%clk 0:03:00.6]} 3... e5 {[%clk 0:03:00.1]}
4. e3 {[%clk 0:03:00.8]} 4... f5 {[%clk 0:03:00.5]} 5. d4 {[%clk 0:02:51.8]}
5... e4 {[%clk 0:03:00.9]} 6. d5 {[%clk 0:02:51.6]} 6... Nb8 {[%clk 0:03:01.4]}
7. Nd2 {[%clk 0:02:50.7]} 7... Nf6 {[%clk 0:03:01.4]} 8. f3 {[%clk 0:02:50]}
8... Bd6 {[%clk 0:02:56]} 9. Qc2 {[%clk 0:02:42.2]} 9... Qe7 {[%clk 0:02:43.9]}
10. Nb5 {[%clk 0:02:34]} 10... exf3 {[%clk 0:02:37]} 11. Nxd6+ {[%clk
0:02:28.9]} 11... Qxd6 {[%clk 0:02:37.9]} 12. gxf3 {[%clk 0:02:23.8]} 12... O-O
{[%clk 0:02:36.5]} 13. Bd3 {[%clk 0:02:19.4]} 13... Qe7 {[%clk 0:02:33.3]} 14.
Nf1 {[%clk 0:02:17.2]} 14... d6 {[%clk 0:02:32.2]} 15. Bd2 {[%clk 0:02:15.7]}
15... Nbd7 {[%clk 0:02:30.3]} 16. O-O-O {[%clk 0:02:00.3]} 16... Ne5 {[%clk
0:02:30.1]} 17. Ng3 {[%clk 0:01:54.7]} 17... Nxf3 {[%clk 0:02:20.9]} 18. Nxf5
{[%clk 0:01:50.4]} 18... Bxf5 {[%clk 0:02:17.7]} 19. Bxf5 {[%clk 0:01:51.3]}
19... Nxd2 {[%clk 0:02:15.5]} 20. Be6+ {[%clk 0:01:51.3]} 20... Kh8 {[%clk
0:02:15.2]} 21. Rxd2 {[%clk 0:01:51.4]} 21... Nd7 {[%clk 0:02:11.3]} 22. Rg1
{[%clk 0:01:44.9]} 22... Ne5 {[%clk 0:02:11.3]} 23. Rdg2 {[%clk 0:01:43.8]}
23... g6 {[%clk 0:02:04.7]} 24. Qe4 {[%clk 0:01:29.6]} 24... Rf6 {[%clk
0:02:02.3]} 25. h4 {[%clk 0:01:20.8]} 25... Raf8 {[%clk 0:01:59]} 26. h5 {[%clk
0:01:21.2]} 26... Rf1+ {[%clk 0:01:58.8]} 27. Rxf1 {[%clk 0:01:21.3]} 27...
Rxf1+ {[%clk 0:01:59.7]} 28. Kc2 {[%clk 0:01:21.9]} 28... Qf6 {[%clk 0:01:59.6]}
29. hxg6 {[%clk 0:01:18.9]} 29... Nxg6 {[%clk 0:01:59.8]} 30. Kb3 {[%clk
0:01:07.1]} 30... Rf3 {[%clk 0:01:48.4]} 31. Bg4 {[%clk 0:00:59.7]} 31... Rf2
{[%clk 0:01:43.2]} 32. Qe8+ {[%clk 0:00:59.6]} 32... Kg7 {[%clk 0:01:40.9]} 33.
Qd7+ {[%clk 0:00:53.3]} 33... Kh8 {[%clk 0:01:30.4]} 34. Rxf2 {[%clk 0:00:40]}
34... Qxf2 {[%clk 0:01:31.3]} 35. Qxd6 {[%clk 0:00:38.2]} 35... Qxe3+ {[%clk
0:01:28.5]} 36. Ka4 {[%clk 0:00:38.9]} 36... Qd4 {[%clk 0:01:09]} 37. Qb8+
{[%clk 0:00:32.3]} 37... Kg7 {[%clk 0:01:09.4]} 38. Qxb7+ {[%clk 0:00:32.3]}
38... Kh6 {[%clk 0:01:09.4]} 39. Be2 {[%clk 0:00:30.8]} 39... Qd2 {[%clk
0:01:02]} 40. Bg4 {[%clk 0:00:10.9]} 40... Qd4 {[%clk 0:00:59.4]} 41. Be2 {[%clk
0:00:10.3]} 41... Ne5 {[%clk 0:00:46.5]} 42. Qa6+ {[%clk 0:00:08.6]} 42... Kg5
{[%clk 0:00:47.2]} 43. b3 {[%clk 0:00:02.8]} 43... Qb2 {[%clk 0:00:46.3]} 44.
Qe6 {[%clk 0:00:01.2]} 44... Qc3 {[%clk 0:00:35.9]} 45. Kb5 {[%clk 0:00:01.3]}
45... Qb4+ {[%clk 0:00:35.9]} 46. Ka6 {[%clk 0:00:01.7]} 46... Kf4 {[%clk
0:00:24.8]} 47. Qf6+ {[%clk 0:00:02.3]} 47... Ke4 {[%clk 0:00:25.5]} 48. Kxa7
{[%clk 0:00:02.8]} 48... Qa3+ {[%clk 0:00:24]} 49. Kb7 {[%clk 0:00:03.3]} 49...
Qxa2 {[%clk 0:00:24.6]} 50. Bh5 {[%clk 0:00:03]} 50... Qxb3+ {[%clk 0:00:24.9]}
51. Kc7 {[%clk 0:00:03.6]} 51... Qxc4 {[%clk 0:00:25.4]} 52. Be8 {[%clk
0:00:02.7]} 52... Qxd5 {[%clk 0:00:23.1]} 53. Qh4+ {[%clk 0:00:03.3]} 53... Ke3
{[%clk 0:00:19.8]} 54. Qe1+ {[%clk 0:00:03]} 54... Kd4 {[%clk 0:00:16.9]} 55.
Qd2+ {[%clk 0:00:03]} 55... Nd3 {[%clk 0:00:17.6]} 56. Bd7 {[%clk 0:00:02]}
56... Qe5+ {[%clk 0:00:18.1]} 57. Kc8 {[%clk 0:00:02.2]} 57... c4 {[%clk
0:00:18]} 58. Qd1 {[%clk 0:00:01.8]} 58... c3 {[%clk 0:00:18.3]} 59. Qg1+ {[%clk
0:00:02.1]} 59... Qe3 {[%clk 0:00:18]} 60. Qg4+ {[%clk 0:00:02.6]} 60... Nf4
{[%clk 0:00:18.4]} 61. Qg7+ {[%clk 0:00:02.6]} 61... Kd3 {[%clk 0:00:18.1]} 62.
Qxh7+ {[%clk 0:00:02.8]} 62... Kd2 {[%clk 0:00:17.7]} 63. Bb5 {[%clk 0:00:03.4]}
63... Qc5+ {[%clk 0:00:17.2]} 64. Kb7 {[%clk 0:00:03.1]} 64... Qxb5+ {[%clk
0:00:17.6]} 65. Kc7 {[%clk 0:00:03.9]} 65... Qc4+ {[%clk 0:00:17.3]} 66. Kb7
{[%clk 0:00:04.1]} 66... c2 {[%clk 0:00:17.8]} 67. Qh2+ {[%clk 0:00:04.4]} 67...
Kc3 {[%clk 0:00:17.9]} 68. Qg3+ {[%clk 0:00:04.6]} 68... Kb2 {[%clk 0:00:18.4]}
69. Qf2 {[%clk 0:00:04.8]} 69... Kb1 {[%clk 0:00:18.7]} 70. Qe1+ {[%clk
0:00:02.1]} 70... c1=Q {[%clk 0:00:18.2]} 71. Qe5 {[%clk 0:00:02.9]} 71... Qb2+
{[%clk 0:00:18.3]} 72. Ka7 {[%clk 0:00:02.9]} 72... Qa4+ {[%clk 0:00:17.4]} 0-1